[Event "Titled Tuesday Blitz May 03 Late 2022"]
[White "Kazakouski, Valery"]
[Black "Derraugh, Geordie"]
[WhiteFideId "13507443"]
[BlackFideId "2603950"]
[WhiteElo "2524"]
[BlackElo "2116"]
[Result "1-0"]
[Round "02"]
[TimeControl "180+1"]
[Date "2022.05.03"]
[WhiteClock "0:00:12"]
[BlackClock "0:00:03"]

1. d4 {[%clk 0:03:00]}  Nf6 {[%clk 0:02:59]} 2. c4 {[%clk 0:02:59]}  g6 {[%clk 0:02:59]} 3. Nc3 {[%clk 0:03:00]}  d5 {[%clk 0:03:00]} 4. Nf3 {[%clk 0:02:59]}  Bg7 {[%clk 0:03:00]} 5. h4 {[%clk 0:02:59]}  h5 {[%clk 0:03:00]} 6. Bg5 {[%clk 0:02:59]}  dxc4 {[%clk 0:02:59]} 7. e3 {[%clk 0:02:56]}  Bg4 {[%clk 0:02:59]} 8. Bxc4 {[%clk 0:02:56]}  O-O {[%clk 0:02:59]} 9. Qb3 {[%clk 0:02:51]}  Bxf3 {[%clk 0:02:47]} 10. gxf3 {[%clk 0:02:52]}  Qc8 {[%clk 0:02:38]} 11. Rc1 {[%clk 0:02:50]}  Nc6 {[%clk 0:02:38]} 12. Bd3 {[%clk 0:02:50]}  Na5 {[%clk 0:02:35]} 13. Qc2 {[%clk 0:02:38]}  c5 {[%clk 0:02:25]} 14. Bxf6 {[%clk 0:02:05]}  exf6 {[%clk 0:01:46]} 15. Nd5 {[%clk 0:02:05]}  Qd7 {[%clk 0:01:42]} 16. Qxc5 {[%clk 0:02:02]}  Rac8 {[%clk 0:01:32]} 17. Qxc8 {[%clk 0:00:51]}  Rxc8 {[%clk 0:01:31]} 18. Rxc8+ {[%clk 0:00:51]}  Kh7 {[%clk 0:01:32]} 19. Rc5 {[%clk 0:00:52]}  b6 {[%clk 0:01:31]} 20. Rb5 {[%clk 0:00:45]}  Qc6 {[%clk 0:01:03]} 21. Ke2 {[%clk 0:00:28]}  Nc4 {[%clk 0:00:42]} 22. Nc3 {[%clk 0:00:21]}  Nxb2 {[%clk 0:00:39]} 23. Rxb2 {[%clk 0:00:18]}  Qxc3 {[%clk 0:00:39]} 24. Rc2 {[%clk 0:00:19]}  Qa3 {[%clk 0:00:39]} 25. Rb1 {[%clk 0:00:20]}  f5 {[%clk 0:00:37]} 26. Rb3 {[%clk 0:00:18]}  Qe7 {[%clk 0:00:37]} 27. Rbc3 {[%clk 0:00:18]}  Qxh4 {[%clk 0:00:37]} 28. Rc7 {[%clk 0:00:19]}  f4 {[%clk 0:00:14]} 29. Rxf7 {[%clk 0:00:14]}  fxe3 {[%clk 0:00:15]} 30. fxe3 {[%clk 0:00:14]}  Qh2+ {[%clk 0:00:14]} 31. Kd1 {[%clk 0:00:14]}  Qg1+ {[%clk 0:00:13]} 32. Kd2 {[%clk 0:00:15]}  Kg8 {[%clk 0:00:12]} 33. Rcc7 {[%clk 0:00:14]}  Bh6 {[%clk 0:00:12]} 34. f4 {[%clk 0:00:15]}  Qa1 {[%clk 0:00:10]} 35. Rfd7 {[%clk 0:00:12]}  Qb2+ {[%clk 0:00:09]} 36. Bc2 {[%clk 0:00:11]}  Qb4+ {[%clk 0:00:09]} 37. Ke2 {[%clk 0:00:12]}  Qb5+ {[%clk 0:00:07]} 38. Kf2 {[%clk 0:00:12]}  Qb2 {[%clk 0:00:03]} 39. Kf3 {[%clk 0:00:12]}  h4 {[%clk 0:00:03]} 40. Bb3+ {[%clk 0:00:12]} 1-0


[Site "https://www.chess.com"]

[Event "Titled Tuesday Blitz May 03 Late 2022"]
[White "Kollars, Dmitrij"]
[Black "Korchmar, Vasiliy"]
[WhiteFideId "12909572"]
[BlackFideId "24131750"]
[WhiteElo "2584"]
[BlackElo "2370"]
[Result "1/2-1/2"]
[Round "02"]
[TimeControl "180+1"]
[Date "2022.05.03"]
[WhiteClock "0:00:05"]
[BlackClock "0:00:05"]

1. d4 {[%clk 0:03:00]}  d5 {[%clk 0:02:59]} 2. c4 {[%clk 0:03:00]}  c6 {[%clk 0:02:59]} 3. Nf3 {[%clk 0:02:58]}  Nf6 {[%clk 0:02:59]} 4. Nc3 {[%clk 0:02:57]}  e6 {[%clk 0:02:59]} 5. e3 {[%clk 0:02:54]}  Nbd7 {[%clk 0:02:58]} 6. Qc2 {[%clk 0:02:54]}  Bd6 {[%clk 0:02:54]} 7. b3 {[%clk 0:02:53]}  O-O {[%clk 0:02:50]} 8. Be2 {[%clk 0:02:53]}  b6 {[%clk 0:02:46]} 9. O-O {[%clk 0:02:49]}  Bb7 {[%clk 0:02:47]} 10. Bb2 {[%clk 0:02:49]}  Rc8 {[%clk 0:02:46]} 11. Rad1 {[%clk 0:02:45]}  Qe7 {[%clk 0:02:45]} 12. Rfe1 {[%clk 0:02:44]}  Rfd8 {[%clk 0:02:41]} 13. Bf1 {[%clk 0:02:37]}  c5 {[%clk 0:02:31]} 14. cxd5 {[%clk 0:02:33]}  exd5 {[%clk 0:02:32]} 15. Qf5 {[%clk 0:02:31]}  Nf8 {[%clk 0:02:24]} 16. dxc5 {[%clk 0:02:25]}  bxc5 {[%clk 0:02:21]} 17. Nb5 {[%clk 0:02:24]}  Bb8 {[%clk 0:02:15]} 18. Bxf6 {[%clk 0:02:23]}  Qxf6 {[%clk 0:02:15]} 19. Qxf6 {[%clk 0:02:23]}  gxf6 {[%clk 0:02:16]} 20. Nh4 {[%clk 0:02:15]}  Ne6 {[%clk 0:01:56]} 21. Nf5 {[%clk 0:02:12]}  Kf8 {[%clk 0:01:57]} 22. g3 {[%clk 0:02:11]}  a6 {[%clk 0:01:51]} 23. Nc3 {[%clk 0:01:58]}  Be5 {[%clk 0:01:44]} 24. Na4 {[%clk 0:01:53]}  Bc6 {[%clk 0:01:26]} 25. f4 {[%clk 0:01:37]}  Bc7 {[%clk 0:01:12]} 26. Nb2 {[%clk 0:01:17]}  Ba5 {[%clk 0:01:11]} 27. Re2 {[%clk 0:01:16]}  d4 {[%clk 0:01:09]} 28. Nc4 {[%clk 0:01:12]}  Bc3 {[%clk 0:01:07]} 29. Bg2 {[%clk 0:01:10]}  Bb5 {[%clk 0:00:49]} 30. Rc2 {[%clk 0:01:07]}  Bxc4 {[%clk 0:00:38]} 31. bxc4 {[%clk 0:01:08]}  Rb8 {[%clk 0:00:35]} 32. Bd5 {[%clk 0:01:02]}  Nc7 {[%clk 0:00:34]} 33. Bf3 {[%clk 0:00:56]}  Ne6 {[%clk 0:00:28]} 34. Kg2 {[%clk 0:00:49]}  Rb4 {[%clk 0:00:26]} 35. Bd5 {[%clk 0:00:31]}  Rdb8 {[%clk 0:00:26]} 36. exd4 {[%clk 0:00:26]}  cxd4 {[%clk 0:00:27]} 37. Bxe6 {[%clk 0:00:25]}  fxe6 {[%clk 0:00:28]} 38. Nxd4 {[%clk 0:00:26]}  Rb2 {[%clk 0:00:17]} 39. Rxb2 {[%clk 0:00:16]}  Rxb2+ {[%clk 0:00:18]} 40. Kh3 {[%clk 0:00:17]}  Bxd4 {[%clk 0:00:14]} 41. Rxd4 {[%clk 0:00:18]}  Rxa2 {[%clk 0:00:14]} 42. Rd7 {[%clk 0:00:18]}  h6 {[%clk 0:00:10]} 43. Ra7 {[%clk 0:00:13]}  a5 {[%clk 0:00:08]} 44. c5 {[%clk 0:00:14]}  a4 {[%clk 0:00:04]} 45. c6 {[%clk 0:00:14]}  Rc2 {[%clk 0:00:05]} 46. c7 {[%clk 0:00:14]}  Ke8 {[%clk 0:00:05]} 47. Ra8+ {[%clk 0:00:09]}  Kd7 {[%clk 0:00:05]} 48. Rxa4 {[%clk 0:00:09]}  Rxc7 {[%clk 0:00:04]} 49. Ra8 {[%clk 0:00:09]}  Rc5 {[%clk 0:00:03]} 50. Rh8 {[%clk 0:00:08]}  Rh5+ {[%clk 0:00:03]} 51. Kg2 {[%clk 0:00:09]}  Ke7 {[%clk 0:00:03]} 52. Rh7+ {[%clk 0:00:08]}  Kf8 {[%clk 0:00:03]} 53. h3 {[%clk 0:00:08]}  Kg8 {[%clk 0:00:03]} 54. Re7 {[%clk 0:00:08]}  Rd5 {[%clk 0:00:01]} 55. Rxe6 {[%clk 0:00:07]}  Kf7 {[%clk 0:00:02]} 56. Re3 {[%clk 0:00:06]}  h5 {[%clk 0:00:02]} 57. Kf3 {[%clk 0:00:07]}  Kg6 {[%clk 0:00:03]} 58. Ke4 {[%clk 0:00:07]}  Ra5 {[%clk 0:00:03]} 59. Rd3 {[%clk 0:00:07]}  Ra4+ {[%clk 0:00:03]} 60. Ke3 {[%clk 0:00:07]}  Rb4 {[%clk 0:00:04]} 61. Kf3 {[%clk 0:00:07]}  Ra4 {[%clk 0:00:04]} 62. Re3 {[%clk 0:00:06]}  Rb4 {[%clk 0:00:04]} 63. Ke2 {[%clk 0:00:05]}  Rb2+ {[%clk 0:00:04]} 64. Kd3 {[%clk 0:00:05]}  Rb4 {[%clk 0:00:05]} 65. Kc3 {[%clk 0:00:04]}  Ra4 {[%clk 0:00:06]} 66. Kb3 {[%clk 0:00:04]}  Ra1 {[%clk 0:00:06]} 67. Kc4 {[%clk 0:00:04]}  Rh1 {[%clk 0:00:06]} 68. h4 {[%clk 0:00:04]}  Kf5 {[%clk 0:00:06]} 69. Kd5 {[%clk 0:00:03]}  Rd1+ {[%clk 0:00:05]} 70. Kc6 {[%clk 0:00:03]}  Kg4 {[%clk 0:00:05]} 71. Re6 {[%clk 0:00:03]}  Kxg3 {[%clk 0:00:04]} 72. Rxf6 {[%clk 0:00:04]}  Kxh4 {[%clk 0:00:05]} 73. Rg6 {[%clk 0:00:04]}  Rf1 {[%clk 0:00:04]} 74. Kd5 {[%clk 0:00:04]}  Rxf4 {[%clk 0:00:04]} 75. Ke5 {[%clk 0:00:04]}  Rg4 {[%clk 0:00:04]} 76. Rh6 {[%clk 0:00:04]}  Rg1 {[%clk 0:00:03]} 77. Kf4 {[%clk 0:00:03]}  Rf1+ {[%clk 0:00:03]} 78. Ke3 {[%clk 0:00:03]}  Kg4 {[%clk 0:00:04]} 79. Rg6+ {[%clk 0:00:04]}  Kh3 {[%clk 0:00:04]} 80. Rg8 {[%clk 0:00:04]}  h4 {[%clk 0:00:04]} 81. Ke2 {[%clk 0:00:04]}  Rf6 {[%clk 0:00:04]} 82. Rg7 {[%clk 0:00:04]}  Kh2 {[%clk 0:00:04]} 83. Rg8 {[%clk 0:00:05]}  h3 {[%clk 0:00:05]} 84. Rg7 {[%clk 0:00:05]}  Kh1 {[%clk 0:00:05]} 85. Rg8 {[%clk 0:00:06]}  h2 {[%clk 0:00:05]} 86. Rg7 {[%clk 0:00:06]}  Re6+ {[%clk 0:00:04]} 87. Kf2 {[%clk 0:00:06]}  Rf6+ {[%clk 0:00:05]} 88. Ke2 {[%clk 0:00:07]}  Ra6 {[%clk 0:00:05]} 89. Kf2 {[%clk 0:00:07]}  Ra2+ {[%clk 0:00:05]} 90. Kf1 {[%clk 0:00:07]}  Ra1+ {[%clk 0:00:06]} 91. Kf2 {[%clk 0:00:07]}  Rg1 {[%clk 0:00:07]} 92. Rc7 {[%clk 0:00:06]}  Rg2+ {[%clk 0:00:07]} 93. Kf1 {[%clk 0:00:06]}  Ra2 {[%clk 0:00:07]} 94. Rg7 {[%clk 0:00:05]}  Ra1+ {[%clk 0:00:07]} 95. Kf2 {[%clk 0:00:05]}  Ra8 {[%clk 0:00:06]} 96. Kf1 {[%clk 0:00:05]}  Rf8+ {[%clk 0:00:06]} 97. Ke2 {[%clk 0:00:05]}  Re8+ {[%clk 0:00:07]} 98. Kf2 {[%clk 0:00:05]}  Rc8 {[%clk 0:00:07]} 99. Kf1 {[%clk 0:00:05]}  Rc1+ {[%clk 0:00:07]} 100. Kf2 {[%clk 0:00:06]}  Rg1 {[%clk 0:00:08]} 101. Rc7 {[%clk 0:00:05]}  Rg2+ {[%clk 0:00:08]} 102. Kf1 {[%clk 0:00:06]}  Rg8 {[%clk 0:00:07]} 103. Kf2 {[%clk 0:00:05]}  Rf8+ {[%clk 0:00:07]} 104. Ke2 {[%clk 0:00:05]}  Re8+ {[%clk 0:00:06]} 105. Kf2 {[%clk 0:00:05]}  Rf8+ {[%clk 0:00:06]} 106. Ke2 {[%clk 0:00:05]}  Rg8 {[%clk 0:00:05]} 107. Kf2 {[%clk 0:00:05]}  Rg2+ {[%clk 0:00:05]} 1/2-1/2


[Site "https://www.chess.com"]

[Event "Titled Tuesday Blitz May 03 Late 2022"]
[White "Koziorowicz, Michal"]
[Black "Lashkin, Jegor"]
[WhiteFideId "21809194"]
[BlackFideId "13907808"]
[WhiteElo "2235"]
[BlackElo "2368"]
[Result "0-1"]
[Round "02"]
[TimeControl "180+1"]
[Date "2022.05.03"]
[WhiteClock "0:01:15"]
[BlackClock "0:00:18"]

1. e4 {[%clk 0:03:00]}  c5 {[%clk 0:03:00]} 2. Nf3 {[%clk 0:03:00]}  d6 {[%clk 0:03:00]} 3. Bb5+ {[%clk 0:03:00]}  Nd7 {[%clk 0:03:00]} 4. d4 {[%clk 0:03:00]}  cxd4 {[%clk 0:03:00]} 5. Qxd4 {[%clk 0:03:01]}  a6 {[%clk 0:03:01]} 6. Bxd7+ {[%clk 0:03:00]}  Bxd7 {[%clk 0:03:02]} 7. O-O {[%clk 0:03:00]}  Rc8 {[%clk 0:03:00]} 8. Nc3 {[%clk 0:02:59]}  e5 {[%clk 0:03:00]} 9. Qd3 {[%clk 0:02:59]}  h6 {[%clk 0:03:01]} 10. Rd1 {[%clk 0:02:57]}  Nf6 {[%clk 0:03:01]} 11. Nd2 {[%clk 0:02:57]}  Qc7 {[%clk 0:03:01]} 12. Nf1 {[%clk 0:02:57]}  Bg4 {[%clk 0:03:01]} 13. f3 {[%clk 0:02:56]}  Be6 {[%clk 0:03:01]} 14. Ne3 {[%clk 0:02:56]}  Be7 {[%clk 0:03:02]} 15. Kh1 {[%clk 0:02:56]}  O-O {[%clk 0:03:02]} 16. Bd2 {[%clk 0:02:56]}  b5 {[%clk 0:03:01]} 17. Rac1 {[%clk 0:02:55]}  Qb7 {[%clk 0:02:47]} 18. Be1 {[%clk 0:02:48]}  Rc5 {[%clk 0:02:40]} 19. Bf2 {[%clk 0:02:47]}  Rc7 {[%clk 0:02:35]} 20. Ned5 {[%clk 0:02:39]}  Nxd5 {[%clk 0:02:35]} 21. Nxd5 {[%clk 0:02:40]}  Bxd5 {[%clk 0:02:35]} 22. Qxd5 {[%clk 0:02:41]}  Qxd5 {[%clk 0:02:35]} 23. Rxd5 {[%clk 0:02:42]}  Bg5 {[%clk 0:02:34]} 24. Rb1 {[%clk 0:02:35]}  Rxc2 {[%clk 0:02:34]} 25. Bg1 {[%clk 0:02:34]}  Be7 {[%clk 0:02:27]} 26. a4 {[%clk 0:02:30]}  bxa4 {[%clk 0:02:26]} 27. Ra5 {[%clk 0:02:30]}  Rc6 {[%clk 0:02:24]} 28. Rxa4 {[%clk 0:02:30]}  Rb8 {[%clk 0:02:24]} 29. b4 {[%clk 0:02:17]}  Kf8 {[%clk 0:01:59]} 30. Rba1 {[%clk 0:02:16]}  Ke8 {[%clk 0:01:57]} 31. Rxa6 {[%clk 0:02:15]}  Rxa6 {[%clk 0:01:58]} 32. Rxa6 {[%clk 0:02:16]}  Rxb4 {[%clk 0:01:58]} 33. h3 {[%clk 0:02:13]}  Kd7 {[%clk 0:01:59]} 34. Kh2 {[%clk 0:02:13]}  Ke6 {[%clk 0:01:59]} 35. Bf2 {[%clk 0:02:01]}  Rb3 {[%clk 0:01:56]} 36. Bg3 {[%clk 0:02:00]}  h5 {[%clk 0:01:54]} 37. h4 {[%clk 0:01:59]}  g6 {[%clk 0:01:54]} 38. Ra8 {[%clk 0:01:58]}  Bf6 {[%clk 0:01:47]} 39. Ra6 {[%clk 0:01:56]}  Rb8 {[%clk 0:01:47]} 40. Kh3 {[%clk 0:01:54]}  Bd8 {[%clk 0:01:46]} 41. Kh2 {[%clk 0:01:46]}  Bb6 {[%clk 0:01:46]} 42. Be1 {[%clk 0:01:40]}  Bc5 {[%clk 0:01:45]} 43. Ra2 {[%clk 0:01:37]}  f5 {[%clk 0:01:44]} 44. exf5+ {[%clk 0:01:34]}  gxf5 {[%clk 0:01:45]} 45. Re2 {[%clk 0:01:29]}  d5 {[%clk 0:01:35]} 46. Bg3 {[%clk 0:01:28]}  Bd4 {[%clk 0:01:32]} 47. Bxe5 {[%clk 0:01:28]}  Bxe5+ {[%clk 0:01:30]} 48. f4 {[%clk 0:01:29]}  d4 {[%clk 0:01:05]} 49. Rxe5+ {[%clk 0:01:27]}  Kd6 {[%clk 0:01:06]} 50. Kg3 {[%clk 0:01:23]}  d3 {[%clk 0:00:30]} 51. Kf3 {[%clk 0:01:21]}  Rb1 {[%clk 0:00:23]} 52. Re3 {[%clk 0:01:19]}  Rd1 {[%clk 0:00:20]} 53. Kf2 {[%clk 0:01:18]}  Kd5 {[%clk 0:00:19]} 54. Re8 {[%clk 0:01:17]}  Rd2+ {[%clk 0:00:18]} 55. Ke3 {[%clk 0:01:15]}  Re2+ {[%clk 0:00:18]} 0-1


[Site "https://www.chess.com"]

[Event "Titled Tuesday Blitz May 03 Late 2022"]
[White "Marin Masis, Jose Esteban"]
[Black "Vujic, Mihailo"]
[WhiteFideId "6508146"]
[BlackFideId "918873"]
[WhiteElo "1710"]
[BlackElo "2256"]
[Result "0-1"]
[Round "02"]
[TimeControl "180+1"]
[Date "2022.05.03"]
[WhiteClock "0:01:53"]
[BlackClock "0:02:44"]

1. e4 {[%clk 0:03:00]}  e5 {[%clk 0:02:58]} 2. Nf3 {[%clk 0:03:00]}  Nc6 {[%clk 0:02:59]} 3. d4 {[%clk 0:02:57]}  exd4 {[%clk 0:02:58]} 4. Bc4 {[%clk 0:02:57]}  Nf6 {[%clk 0:02:59]} 5. O-O {[%clk 0:02:52]}  Nxe4 {[%clk 0:02:58]} 6. Re1 {[%clk 0:02:52]}  d5 {[%clk 0:02:58]} 7. Bxd5 {[%clk 0:02:53]}  Qxd5 {[%clk 0:02:57]} 8. Nc3 {[%clk 0:02:53]}  Qh5 {[%clk 0:02:58]} 9. Nxe4 {[%clk 0:02:52]}  Be6 {[%clk 0:02:58]} 10. Neg5 {[%clk 0:02:49]}  O-O-O {[%clk 0:02:57]} 11. Nxe6 {[%clk 0:02:49]}  fxe6 {[%clk 0:02:58]} 12. Rxe6 {[%clk 0:02:46]}  Bd6 {[%clk 0:02:59]} 13. Qe1 {[%clk 0:02:33]}  d3 {[%clk 0:02:58]} 14. c3 {[%clk 0:02:13]}  Rhe8 {[%clk 0:02:55]} 15. Bd2 {[%clk 0:02:05]}  Ne5 {[%clk 0:02:53]} 16. Rxe8 {[%clk 0:02:03]}  Nxf3+ {[%clk 0:02:45]} 17. gxf3 {[%clk 0:01:53]}  Qxh2+ {[%clk 0:02:44]} 0-1


[Site "https://www.chess.com"]

[Event "Titled Tuesday Blitz May 03 Late 2022"]
[White "Melikhov, Evgeny V."]
[Black "Ronka, Erik"]
[WhiteFideId "4122046"]
[BlackFideId "505080"]
[WhiteElo "1931"]
[BlackElo "2264"]
[Result "1-0"]
[Round "02"]
[TimeControl "180+1"]
[Date "2022.05.03"]
[WhiteClock "0:00:14"]
[BlackClock "0:00:12"]

1. d4 {[%clk 0:03:00]}  d5 {[%clk 0:02:58]} 2. c4 {[%clk 0:03:01]}  e6 {[%clk 0:02:56]} 3. Nc3 {[%clk 0:03:01]}  a6 {[%clk 0:02:57]} 4. cxd5 {[%clk 0:02:59]}  exd5 {[%clk 0:02:58]} 5. Nf3 {[%clk 0:02:58]}  Nf6 {[%clk 0:02:58]} 6. Bg5 {[%clk 0:02:57]}  Be6 {[%clk 0:02:58]} 7. e3 {[%clk 0:02:57]}  Nbd7 {[%clk 0:02:58]} 8. Bd3 {[%clk 0:02:57]}  h6 {[%clk 0:02:59]} 9. Bh4 {[%clk 0:02:56]}  g5 {[%clk 0:02:59]} 10. Bg3 {[%clk 0:02:56]}  Nh5 {[%clk 0:03:00]} 11. Qc2 {[%clk 0:02:45]}  c5 {[%clk 0:02:56]} 12. dxc5 {[%clk 0:02:43]}  Nxc5 {[%clk 0:02:57]} 13. Nd4 {[%clk 0:02:40]}  Bg7 {[%clk 0:02:40]} 14. Nf5 {[%clk 0:02:02]}  Bxf5 {[%clk 0:02:27]} 15. Bxf5 {[%clk 0:02:02]}  Nxg3 {[%clk 0:02:18]} 16. hxg3 {[%clk 0:02:01]}  O-O {[%clk 0:02:18]} 17. O-O {[%clk 0:01:57]}  Ne6 {[%clk 0:01:46]} 18. Rad1 {[%clk 0:01:50]}  Nc7 {[%clk 0:01:26]} 19. Qe2 {[%clk 0:01:21]}  Bxc3 {[%clk 0:01:14]} 20. bxc3 {[%clk 0:01:20]}  Qf6 {[%clk 0:01:15]} 21. Bb1 {[%clk 0:01:10]}  Rad8 {[%clk 0:01:12]} 22. Qd3 {[%clk 0:01:03]}  Qg7 {[%clk 0:01:09]} 23. g4 {[%clk 0:00:56]}  Ne6 {[%clk 0:00:58]} 24. Qf5 {[%clk 0:00:53]}  Rfe8 {[%clk 0:00:53]} 25. Rxd5 {[%clk 0:00:46]}  Rxd5 {[%clk 0:00:50]} 26. Qxd5 {[%clk 0:00:46]}  Re7 {[%clk 0:00:26]} 27. Qf5 {[%clk 0:00:42]}  Rc7 {[%clk 0:00:24]} 28. Rc1 {[%clk 0:00:39]}  Rxc3 {[%clk 0:00:20]} 29. Rxc3 {[%clk 0:00:36]}  Qxc3 {[%clk 0:00:21]} 30. Kh2 {[%clk 0:00:35]}  Qc7+ {[%clk 0:00:20]} 31. g3 {[%clk 0:00:34]}  Kf8 {[%clk 0:00:14]} 32. Qh7 {[%clk 0:00:32]}  Qe5 {[%clk 0:00:12]} 33. Bf5 {[%clk 0:00:27]}  Ng7 {[%clk 0:00:11]} 34. Qxh6 {[%clk 0:00:23]}  Ke7 {[%clk 0:00:11]} 35. Qxg5+ {[%clk 0:00:22]}  Kd6 {[%clk 0:00:09]} 36. Qd8+ {[%clk 0:00:21]}  Kc5 {[%clk 0:00:08]} 37. Qa5+ {[%clk 0:00:20]}  Kd6 {[%clk 0:00:08]} 38. Qxe5+ {[%clk 0:00:19]}  Kxe5 {[%clk 0:00:09]} 39. f4+ {[%clk 0:00:18]}  Kd5 {[%clk 0:00:08]} 40. Bd3 {[%clk 0:00:17]}  b5 {[%clk 0:00:08]} 41. g5 {[%clk 0:00:17]}  b4 {[%clk 0:00:08]} 42. Bxa6 {[%clk 0:00:16]}  Kc5 {[%clk 0:00:08]} 43. Bd3 {[%clk 0:00:15]}  Ne6 {[%clk 0:00:07]} 44. g4 {[%clk 0:00:14]}  Nc7 {[%clk 0:00:08]} 45. f5 {[%clk 0:00:13]}  Nd5 {[%clk 0:00:09]} 46. g6 {[%clk 0:00:13]}  fxg6 {[%clk 0:00:09]} 47. fxg6 {[%clk 0:00:13]}  Nxe3 {[%clk 0:00:08]} 48. Kg3 {[%clk 0:00:12]}  Nd5 {[%clk 0:00:08]} 49. g7 {[%clk 0:00:12]}  Ne7 {[%clk 0:00:08]} 50. g5 {[%clk 0:00:13]}  Kd4 {[%clk 0:00:08]} 51. Bh7 {[%clk 0:00:13]}  Kc3 {[%clk 0:00:08]} 52. g8=Q {[%clk 0:00:13]}  Nxg8 {[%clk 0:00:08]} 53. Bxg8 {[%clk 0:00:13]}  Kb2 {[%clk 0:00:09]} 54. Bb3 {[%clk 0:00:14]}  Ka3 {[%clk 0:00:10]} 55. g6 {[%clk 0:00:13]}  Kb2 {[%clk 0:00:11]} 56. g7 {[%clk 0:00:14]}  Ka3 {[%clk 0:00:12]} 57. g8=Q {[%clk 0:00:14]} 1-0


[Site "https://www.chess.com"]

[Event "Titled Tuesday Blitz May 03 Late 2022"]
[White "Melikyan, Gnel"]
[Black "Nakamura, Hikaru"]
[WhiteFideId "54109990"]
[BlackFideId "2016192"]
[WhiteElo "1772"]
[BlackElo "2850"]
[Result "0-1"]
[Round "02"]
[TimeControl "180+1"]
[Date "2022.05.03"]
[WhiteClock "0:00:20"]
[BlackClock "0:01:55"]

1. e4 {[%clk 0:03:00]}  c6 {[%clk 0:02:53]} 2. d4 {[%clk 0:02:58]}  d5 {[%clk 0:02:54]} 3. f3 {[%clk 0:02:58]}  e6 {[%clk 0:02:52]} 4. Nc3 {[%clk 0:02:57]}  Bb4 {[%clk 0:02:51]} 5. Bf4 {[%clk 0:02:50]}  Nf6 {[%clk 0:02:48]} 6. Qd3 {[%clk 0:02:49]}  b6 {[%clk 0:02:47]} 7. Ne2 {[%clk 0:02:47]}  Ba6 {[%clk 0:02:46]} 8. Qe3 {[%clk 0:02:47]}  Nbd7 {[%clk 0:02:46]} 9. O-O-O {[%clk 0:02:46]}  O-O {[%clk 0:02:42]} 10. a3 {[%clk 0:02:36]}  Be7 {[%clk 0:02:40]} 11. Kb1 {[%clk 0:02:00]}  b5 {[%clk 0:02:38]} 12. Na2 {[%clk 0:01:58]}  c5 {[%clk 0:02:34]} 13. dxc5 {[%clk 0:01:55]}  Bxc5 {[%clk 0:02:33]} 14. Qd2 {[%clk 0:01:49]}  dxe4 {[%clk 0:02:34]} 15. fxe4 {[%clk 0:01:44]}  Nxe4 {[%clk 0:02:31]} 16. Qxd7 {[%clk 0:01:41]}  Nf2 {[%clk 0:02:31]} 17. Qxd8 {[%clk 0:01:28]}  Raxd8 {[%clk 0:02:31]} 18. Rxd8 {[%clk 0:01:27]}  Rxd8 {[%clk 0:02:32]} 19. Rg1 {[%clk 0:01:27]}  Nh3 {[%clk 0:02:28]} 20. gxh3 {[%clk 0:00:58]}  Rd1+ {[%clk 0:02:27]} 21. Nec1 {[%clk 0:00:52]}  Bxg1 {[%clk 0:02:28]} 22. Be2 {[%clk 0:00:51]}  Rd8 {[%clk 0:02:28]} 23. Nb4 {[%clk 0:00:51]}  Bb7 {[%clk 0:02:28]} 24. Bxb5 {[%clk 0:00:50]}  h6 {[%clk 0:02:22]} 25. Ncd3 {[%clk 0:00:46]}  Bb6 {[%clk 0:02:18]} 26. Nc6 {[%clk 0:00:41]}  Ra8 {[%clk 0:02:17]} 27. Ne7+ {[%clk 0:00:36]}  Kh8 {[%clk 0:02:06]} 28. Ne5 {[%clk 0:00:34]}  g5 {[%clk 0:02:06]} 29. Bd2 {[%clk 0:00:32]}  f6 {[%clk 0:02:02]} 30. Ng4 {[%clk 0:00:31]}  Bc5 {[%clk 0:01:54]} 31. Nc6 {[%clk 0:00:22]}  a6 {[%clk 0:01:54]} 32. Ba4 {[%clk 0:00:21]}  Kg7 {[%clk 0:01:54]} 33. Bc3 {[%clk 0:00:21]}  e5 {[%clk 0:01:55]} 34. Ne7 {[%clk 0:00:20]}  Bxe7 {[%clk 0:01:55]} 0-1


[Site "https://www.chess.com"]

[Event "Titled Tuesday Blitz May 03 Late 2022"]
[White "Melkumyan, Hrant"]
[Black "Sernecki, Franciszek"]
[WhiteFideId "13302485"]
[BlackFideId "1169297"]
[WhiteElo "2604"]
[BlackElo "2165"]
[Result "1-0"]
[Round "02"]
[TimeControl "180+1"]
[Date "2022.05.03"]
[WhiteClock "0:01:34"]
[BlackClock "0:00:04"]

1. d4 {[%clk 0:03:00]}  Nf6 {[%clk 0:02:54]} 2. c4 {[%clk 0:03:01]}  e6 {[%clk 0:02:48]} 3. Nc3 {[%clk 0:03:01]}  Bb4 {[%clk 0:02:46]} 4. e3 {[%clk 0:03:01]}  O-O {[%clk 0:02:43]} 5. Bd3 {[%clk 0:03:01]}  d5 {[%clk 0:02:39]} 6. cxd5 {[%clk 0:03:01]}  exd5 {[%clk 0:02:36]} 7. Ne2 {[%clk 0:03:01]}  c5 {[%clk 0:02:33]} 8. dxc5 {[%clk 0:03:01]}  Bxc5 {[%clk 0:02:29]} 9. O-O {[%clk 0:03:01]}  Nc6 {[%clk 0:02:29]} 10. b3 {[%clk 0:02:51]}  Bg4 {[%clk 0:02:09]} 11. h3 {[%clk 0:02:51]}  Bh5 {[%clk 0:02:09]} 12. Bb2 {[%clk 0:02:43]}  Re8 {[%clk 0:02:08]} 13. Rc1 {[%clk 0:02:41]}  Bb6 {[%clk 0:01:53]} 14. Na4 {[%clk 0:02:38]}  Bc7 {[%clk 0:01:50]} 15. Qc2 {[%clk 0:02:32]}  Nb4 {[%clk 0:01:16]} 16. Qb1 {[%clk 0:02:31]}  Qd6 {[%clk 0:01:02]} 17. Rxc7 {[%clk 0:02:29]}  Qxc7 {[%clk 0:00:57]} 18. Bxf6 {[%clk 0:02:29]}  Nxd3 {[%clk 0:00:53]} 19. Qxd3 {[%clk 0:02:19]}  Bxe2 {[%clk 0:00:53]} 20. Qxe2 {[%clk 0:02:20]}  gxf6 {[%clk 0:00:53]} 21. Qg4+ {[%clk 0:02:06]}  Kh8 {[%clk 0:00:52]} 22. Qf3 {[%clk 0:02:07]}  Qe5 {[%clk 0:00:51]} 23. Nc5 {[%clk 0:02:07]}  Re7 {[%clk 0:00:40]} 24. Rd1 {[%clk 0:02:05]}  Rd8 {[%clk 0:00:38]} 25. Nd3 {[%clk 0:02:02]}  Qe4 {[%clk 0:00:38]} 26. Qxf6+ {[%clk 0:02:02]}  Kg8 {[%clk 0:00:38]} 27. Nf4 {[%clk 0:01:59]}  d4 {[%clk 0:00:33]} 28. Nh5 {[%clk 0:01:59]}  Qe5 {[%clk 0:00:23]} 29. Qh4 {[%clk 0:01:50]}  d3 {[%clk 0:00:20]} 30. Nf6+ {[%clk 0:01:46]}  Kg7 {[%clk 0:00:19]} 31. Ng4 {[%clk 0:01:47]}  Qe6 {[%clk 0:00:18]} 32. Qg5+ {[%clk 0:01:43]}  Kh8 {[%clk 0:00:17]} 33. Nf6 {[%clk 0:01:39]}  d2 {[%clk 0:00:08]} 34. Rxd2 {[%clk 0:01:35]}  Rf8 {[%clk 0:00:04]} 35. Qh6 {[%clk 0:01:35]}  Qf5 {[%clk 0:00:04]} 36. Qxf8# {[%clk 0:01:34]} 1-0


[Site "https://www.chess.com"]

[Event "Titled Tuesday Blitz May 03 Late 2022"]
[White "Moiseenko, Alexander"]
[Black "Stearman, Josiah"]
[WhiteFideId "14102560"]
[BlackFideId "2062496"]
[WhiteElo "2577"]
[BlackElo "2402"]
[Result "1-0"]
[Round "02"]
[TimeControl "180+1"]
[Date "2022.05.03"]
[WhiteClock "0:02:30"]
[BlackClock "0:02:35"]

1. d4 {[%clk 0:03:00]}  d5 {[%clk 0:02:59]} 2. c4 {[%clk 0:03:00]}  c6 {[%clk 0:02:59]} 3. Nc3 {[%clk 0:02:59]}  Nf6 {[%clk 0:03:00]} 4. Nf3 {[%clk 0:02:58]}  dxc4 {[%clk 0:03:00]} 5. a4 {[%clk 0:02:58]}  Bf5 {[%clk 0:02:59]} 6. Nh4 {[%clk 0:02:58]}  Bc8 {[%clk 0:02:59]} 7. e3 {[%clk 0:02:58]}  g6 {[%clk 0:02:44]} 8. Bxc4 {[%clk 0:02:57]}  Bg7 {[%clk 0:02:44]} 9. O-O {[%clk 0:02:52]}  O-O {[%clk 0:02:44]} 10. h3 {[%clk 0:02:40]}  Nd5 {[%clk 0:02:42]} 11. Nf3 {[%clk 0:02:35]}  b6 {[%clk 0:02:38]} 12. e4 {[%clk 0:02:31]}  Nxc3 {[%clk 0:02:34]} 13. bxc3 {[%clk 0:02:32]}  c5 {[%clk 0:02:35]} 14. Bd5 {[%clk 0:02:30]} 1-0


[Site "https://www.chess.com"]